[Event "Titled Tuesday Blitz February 15 Late 2022"]
[White "Mogranzini, Roberto"]
[Black "Golubev, Mikhail"]
[WhiteFideId "810894"]
[BlackFideId "14100983"]
[WhiteElo "2469"]
[BlackElo "2374"]
[Result "1/2-1/2"]
[Round "10"]
[TimeControl "180+1"]
[Date "2022.02.16"]
[WhiteClock "0:00:44"]
[BlackClock "0:00:16"]

1. e4 {[%clk 0:03:00]}  c5 {[%clk 0:02:59]} 2. Nf3 {[%clk 0:03:00]}  d6 {[%clk 0:03:00]} 3. Nc3 {[%clk 0:03:01]}  Nf6 {[%clk 0:02:58]} 4. e5 {[%clk 0:03:02]}  dxe5 {[%clk 0:02:58]} 5. Nxe5 {[%clk 0:03:03]}  Nfd7 {[%clk 0:02:45]} 6. Nc4 {[%clk 0:03:02]}  Nc6 {[%clk 0:02:41]} 7. g3 {[%clk 0:03:01]}  Nb6 {[%clk 0:02:28]} 8. Ne3 {[%clk 0:03:01]}  g6 {[%clk 0:02:21]} 9. Bg2 {[%clk 0:03:00]}  Bg7 {[%clk 0:02:21]} 10. a4 {[%clk 0:02:57]}  a5 {[%clk 0:02:06]} 11. O-O {[%clk 0:02:47]}  Nd4 {[%clk 0:02:01]} 12. d3 {[%clk 0:02:44]}  O-O {[%clk 0:02:00]} 13. Ne4 {[%clk 0:02:39]}  Qc7 {[%clk 0:01:55]} 14. c3 {[%clk 0:02:38]}  Nf5 {[%clk 0:01:49]} 15. Qc2 {[%clk 0:02:25]}  Rd8 {[%clk 0:01:33]} 16. Re1 {[%clk 0:02:21]}  e5 {[%clk 0:01:24]} 17. Nxf5 {[%clk 0:01:57]}  Bxf5 {[%clk 0:01:24]} 18. Be3 {[%clk 0:01:57]}  c4 {[%clk 0:01:21]} 19. Bxb6 {[%clk 0:01:50]}  Qxb6 {[%clk 0:01:22]} 20. dxc4 {[%clk 0:01:48]}  Rac8 {[%clk 0:01:17]} 21. c5 {[%clk 0:01:45]}  Bxe4 {[%clk 0:01:12]} 22. Qxe4 {[%clk 0:01:44]}  Qxc5 {[%clk 0:01:10]} 23. Rad1 {[%clk 0:01:33]}  b6 {[%clk 0:01:08]} 24. Qc2 {[%clk 0:01:28]}  f5 {[%clk 0:01:02]} 25. Qb3+ {[%clk 0:01:26]}  Kh8 {[%clk 0:01:02]} 26. Rxd8+ {[%clk 0:01:18]}  Rxd8 {[%clk 0:01:01]} 27. Rd1 {[%clk 0:01:19]}  Rxd1+ {[%clk 0:00:49]} 28. Qxd1 {[%clk 0:01:20]}  e4 {[%clk 0:00:45]} 29. Qd8+ {[%clk 0:01:12]}  Bf8 {[%clk 0:00:44]} 30. Qe8 {[%clk 0:01:08]}  Kg7 {[%clk 0:00:32]} 31. Bf1 {[%clk 0:01:08]}  Qe7 {[%clk 0:00:31]} 32. Qxe7+ {[%clk 0:00:59]}  Bxe7 {[%clk 0:00:31]} 33. f3 {[%clk 0:00:50]}  exf3 {[%clk 0:00:26]} 34. Kf2 {[%clk 0:00:50]}  Kf6 {[%clk 0:00:26]} 35. Kxf3 {[%clk 0:00:50]}  Ke5 {[%clk 0:00:26]} 36. Bc4 {[%clk 0:00:50]}  h6 {[%clk 0:00:25]} 37. h4 {[%clk 0:00:44]}  g5 {[%clk 0:00:24]} 38. hxg5 {[%clk 0:00:44]}  hxg5 {[%clk 0:00:24]} 39. g4 {[%clk 0:00:45]}  f4 {[%clk 0:00:21]} 40. Bf7 {[%clk 0:00:39]}  Bc5 {[%clk 0:00:21]} 41. Ke2 {[%clk 0:00:37]}  Be3 {[%clk 0:00:18]} 42. b4 {[%clk 0:00:36]}  axb4 {[%clk 0:00:16]} 43. cxb4 {[%clk 0:00:37]}  Kd4 {[%clk 0:00:16]} 44. a5 {[%clk 0:00:37]}  bxa5 {[%clk 0:00:16]} 45. bxa5 {[%clk 0:00:38]}  Kc5 {[%clk 0:00:15]} 46. a6 {[%clk 0:00:36]}  Kb6 {[%clk 0:00:15]} 47. Bc4 {[%clk 0:00:36]}  Bc1 {[%clk 0:00:14]} 48. Kf3 {[%clk 0:00:36]}  Ka7 {[%clk 0:00:13]} 49. Be2 {[%clk 0:00:36]}  Bd2 {[%clk 0:00:12]} 50. Bd3 {[%clk 0:00:36]}  Bc1 {[%clk 0:00:12]} 51. Ke2 {[%clk 0:00:35]}  f3+ {[%clk 0:00:12]} 52. Kxf3 {[%clk 0:00:35]}  Bf4 {[%clk 0:00:12]} 53. Ke4 {[%clk 0:00:36]}  Kb6 {[%clk 0:00:13]} 54. Kf5 {[%clk 0:00:35]}  Ka7 {[%clk 0:00:13]} 55. Ke4 {[%clk 0:00:36]}  Kb6 {[%clk 0:00:13]} 56. Kd5 {[%clk 0:00:37]}  Ka7 {[%clk 0:00:14]} 57. Kc6 {[%clk 0:00:38]}  Be3 {[%clk 0:00:14]} 58. Bc4 {[%clk 0:00:37]}  Bf4 {[%clk 0:00:14]} 59. Kd5 {[%clk 0:00:37]}  Bc1 {[%clk 0:00:14]} 60. Ke4 {[%clk 0:00:38]}  Bf4 {[%clk 0:00:14]} 61. Kd3 {[%clk 0:00:39]}  Bc1 {[%clk 0:00:14]} 62. Kc2 {[%clk 0:00:40]}  Bf4 {[%clk 0:00:14]} 63. Kd1 {[%clk 0:00:40]}  Kb6 {[%clk 0:00:15]} 64. Ke2 {[%clk 0:00:40]}  Ka7 {[%clk 0:00:15]} 65. Kd3 {[%clk 0:00:41]}  Kb6 {[%clk 0:00:16]} 66. Ke2 {[%clk 0:00:42]}  Ka7 {[%clk 0:00:16]} 67. Kd1 {[%clk 0:00:43]}  Kb6 {[%clk 0:00:16]} 68. Ke2 {[%clk 0:00:44]} 1/2-1/2


[Site "https://www.chess.com"]

[Event "Titled Tuesday Blitz February 15 Late 2022"]
[White "Novikova, Galina"]
[Black "Quirke, Jeffrey"]
[WhiteFideId "4157095"]
[BlackFideId "2013029"]
[WhiteElo "1863"]
[BlackElo "2188"]
[Result "0-1"]
[Round "10"]
[TimeControl "180+1"]
[Date "2022.02.16"]
[WhiteClock "0:00:17"]
[BlackClock "0:00:06"]

1. e4 {[%clk 0:02:53]}  c5 {[%clk 0:02:59]} 2. Nf3 {[%clk 0:02:53]}  e6 {[%clk 0:02:59]} 3. b4 {[%clk 0:02:53]}  b6 {[%clk 0:02:58]} 4. bxc5 {[%clk 0:02:52]}  bxc5 {[%clk 0:02:59]} 5. c3 {[%clk 0:02:53]}  Nc6 {[%clk 0:02:57]} 6. d4 {[%clk 0:02:52]}  cxd4 {[%clk 0:02:58]} 7. cxd4 {[%clk 0:02:53]}  d5 {[%clk 0:02:58]} 8. e5 {[%clk 0:02:54]}  Bb4+ {[%clk 0:02:52]} 9. Bd2 {[%clk 0:02:51]}  Qb6 {[%clk 0:02:51]} 10. Bd3 {[%clk 0:02:50]}  Ba6 {[%clk 0:02:40]} 11. Qe2 {[%clk 0:02:43]}  Bxd3 {[%clk 0:02:38]} 12. Qxd3 {[%clk 0:02:44]}  Nge7 {[%clk 0:02:36]} 13. O-O {[%clk 0:02:42]}  O-O {[%clk 0:02:29]} 14. Nc3 {[%clk 0:02:31]}  Nf5 {[%clk 0:02:01]} 15. Ne2 {[%clk 0:02:27]}  Bxd2 {[%clk 0:01:57]} 16. Qxd2 {[%clk 0:02:28]}  Rfc8 {[%clk 0:01:51]} 17. h4 {[%clk 0:02:25]}  Rab8 {[%clk 0:01:45]} 18. h5 {[%clk 0:02:19]}  h6 {[%clk 0:01:44]} 19. g4 {[%clk 0:02:14]}  Nfe7 {[%clk 0:01:43]} 20. g5 {[%clk 0:02:03]}  Qb2 {[%clk 0:01:42]} 21. Qe3 {[%clk 0:01:52]}  Nf5 {[%clk 0:01:42]} 22. Qd3 {[%clk 0:01:41]}  Nb4 {[%clk 0:01:40]} 23. Qd1 {[%clk 0:01:39]}  Qc2 {[%clk 0:01:27]} 24. gxh6 {[%clk 0:01:33]}  Qxd1 {[%clk 0:01:21]} 25. Rfxd1 {[%clk 0:01:28]}  Nxh6 {[%clk 0:01:02]} 26. a4 {[%clk 0:01:25]}  a5 {[%clk 0:01:00]} 27. Ng3 {[%clk 0:01:23]}  Rc2 {[%clk 0:00:56]} 28. Rdc1 {[%clk 0:01:21]}  Rbc8 {[%clk 0:00:56]} 29. Rxc2 {[%clk 0:01:21]}  Rxc2 {[%clk 0:00:57]} 30. Ra3 {[%clk 0:01:17]}  Ng4 {[%clk 0:00:53]} 31. h6 {[%clk 0:00:46]}  Nxh6 {[%clk 0:00:45]} 32. Nh2 {[%clk 0:00:41]}  Ra2 {[%clk 0:00:35]} 33. Rc3 {[%clk 0:00:39]}  Rxa4 {[%clk 0:00:34]} 34. Rc8+ {[%clk 0:00:40]}  Kh7 {[%clk 0:00:35]} 35. Nf3 {[%clk 0:00:37]}  Ra1+ {[%clk 0:00:29]} 36. Kg2 {[%clk 0:00:37]}  a4 {[%clk 0:00:29]} 37. Ne2 {[%clk 0:00:35]}  g6 {[%clk 0:00:13]} 38. Rc7 {[%clk 0:00:22]}  a3 {[%clk 0:00:12]} 39. Ng5+ {[%clk 0:00:22]}  Kg8 {[%clk 0:00:10]} 40. Nc3 {[%clk 0:00:16]}  a2 {[%clk 0:00:09]} 41. Ra7 {[%clk 0:00:14]}  Rb1 {[%clk 0:00:08]} 42. Nxa2 {[%clk 0:00:13]}  Ra1 {[%clk 0:00:07]} 43. Ra8+ {[%clk 0:00:08]}  Kg7 {[%clk 0:00:07]} 44. Ra7 {[%clk 0:00:09]}  Rxa2 {[%clk 0:00:06]} 45. Nxe6+ {[%clk 0:00:09]}  Kg8 {[%clk 0:00:04]} 46. Rb7 {[%clk 0:00:08]}  fxe6 {[%clk 0:00:04]} 47. Rxb4 {[%clk 0:00:09]}  g5 {[%clk 0:00:03]} 48. Rb6 {[%clk 0:00:09]}  Kf7 {[%clk 0:00:02]} 49. Rb7+ {[%clk 0:00:09]}  Kg6 {[%clk 0:00:03]} 50. Rb6 {[%clk 0:00:10]}  Kf5 {[%clk 0:00:03]} 51. Rb3 {[%clk 0:00:09]}  Ra6 {[%clk 0:00:02]} 52. Kg3 {[%clk 0:00:09]}  Kg6 {[%clk 0:00:02]} 53. Rb8 {[%clk 0:00:08]}  Ra7 {[%clk 0:00:02]} 54. Re8 {[%clk 0:00:07]}  Rf7 {[%clk 0:00:01]} 55. Rxe6+ {[%clk 0:00:07]}  Kg7 {[%clk 0:00:02]} 56. Rd6 {[%clk 0:00:07]}  Nf5+ {[%clk 0:00:02]} 57. Kg4 {[%clk 0:00:08]}  Nxd6 {[%clk 0:00:03]} 58. exd6 {[%clk 0:00:08]}  Rd7 {[%clk 0:00:04]} 59. Kxg5 {[%clk 0:00:09]}  Rxd6 {[%clk 0:00:04]} 60. f4 {[%clk 0:00:10]}  Ra6 {[%clk 0:00:04]} 61. Kf5 {[%clk 0:00:11]}  Kf7 {[%clk 0:00:04]} 62. Ke5 {[%clk 0:00:11]}  Ra5 {[%clk 0:00:04]} 63. Kd6 {[%clk 0:00:11]}  Rb5 {[%clk 0:00:04]} 64. f5 {[%clk 0:00:12]}  Rb3 {[%clk 0:00:04]} 65. Ke5 {[%clk 0:00:13]}  Rf3 {[%clk 0:00:04]} 66. Kxd5 {[%clk 0:00:12]}  Rxf5+ {[%clk 0:00:04]} 67. Kc6 {[%clk 0:00:13]}  Rf1 {[%clk 0:00:04]} 68. d5 {[%clk 0:00:13]}  Ke8 {[%clk 0:00:05]} 69. Kc7 {[%clk 0:00:14]}  Rc1+ {[%clk 0:00:04]} 70. Kd6 {[%clk 0:00:14]}  Kd8 {[%clk 0:00:04]} 71. Ke6 {[%clk 0:00:14]}  Rc2 {[%clk 0:00:04]} 72. Kd6 {[%clk 0:00:15]}  Rc3 {[%clk 0:00:04]} 73. Ke6 {[%clk 0:00:16]}  Ra3 {[%clk 0:00:05]} 74. Kd6 {[%clk 0:00:17]}  Ra6+ {[%clk 0:00:05]} 75. Ke5 {[%clk 0:00:17]}  Kd7 {[%clk 0:00:06]} 76. Kd4 {[%clk 0:00:17]}  Kd6 {[%clk 0:00:06]} 77. Kc4 {[%clk 0:00:17]}  Ra5 {[%clk 0:00:06]} 0-1


[Site "https://www.chess.com"]

[Event "Titled Tuesday Blitz February 15 Late 2022"]
[White "Papayan, Oleg"]
[Black "Li, Hui"]
[WhiteFideId "4193911"]
[BlackFideId "15400310"]
[WhiteElo "2038"]
[BlackElo "1954"]
[Result "1-0"]
[Round "10"]
[TimeControl "180+1"]
[Date "2022.02.16"]
[WhiteClock "0:00:10"]
[BlackClock "0:00:08"]

1. e4 {[%clk 0:03:00]}  e5 {[%clk 0:03:00]} 2. Nf3 {[%clk 0:02:59]}  Nf6 {[%clk 0:03:00]} 3. d4 {[%clk 0:02:59]}  exd4 {[%clk 0:03:00]} 4. e5 {[%clk 0:02:59]}  Ne4 {[%clk 0:03:01]} 5. Qxd4 {[%clk 0:02:59]}  d5 {[%clk 0:03:02]} 6. exd6 {[%clk 0:02:59]}  Nxd6 {[%clk 0:03:02]} 7. Nc3 {[%clk 0:02:52]}  Nc6 {[%clk 0:03:03]} 8. Qf4 {[%clk 0:02:52]}  Nf5 {[%clk 0:03:03]} 9. Bd3 {[%clk 0:02:18]}  Bd6 {[%clk 0:03:02]} 10. Qg5 {[%clk 0:02:15]}  Qxg5 {[%clk 0:02:57]} 11. Bxg5 {[%clk 0:02:16]}  O-O {[%clk 0:02:39]} 12. O-O-O {[%clk 0:02:15]}  Be6 {[%clk 0:02:17]} 13. Nb5 {[%clk 0:02:13]}  Nb4 {[%clk 0:01:52]} 14. Nxd6 {[%clk 0:01:59]}  Nxd3+ {[%clk 0:01:45]} 15. Rxd3 {[%clk 0:01:57]}  Nxd6 {[%clk 0:01:26]} 16. Be7 {[%clk 0:01:51]}  Rfe8 {[%clk 0:01:26]} 17. Bxd6 {[%clk 0:01:52]}  cxd6 {[%clk 0:01:25]} 18. Rxd6 {[%clk 0:01:52]}  Rac8 {[%clk 0:00:52]} 19. Nd4 {[%clk 0:01:42]}  h6 {[%clk 0:00:34]} 20. Nxe6 {[%clk 0:01:38]}  Rxe6 {[%clk 0:00:34]} 21. Rxe6 {[%clk 0:01:37]}  fxe6 {[%clk 0:00:35]} 22. Re1 {[%clk 0:01:36]}  Kf7 {[%clk 0:00:35]} 23. Re4 {[%clk 0:01:25]}  Rc5 {[%clk 0:00:34]} 24. Kd2 {[%clk 0:01:24]}  Ra5 {[%clk 0:00:33]} 25. a4 {[%clk 0:01:21]}  Rd5+ {[%clk 0:00:31]} 26. Ke3 {[%clk 0:01:06]}  Rc5 {[%clk 0:00:31]} 27. c4 {[%clk 0:01:04]}  Rc8 {[%clk 0:00:27]} 28. b4 {[%clk 0:01:01]}  b6 {[%clk 0:00:20]} 29. f4 {[%clk 0:00:59]}  Ra8 {[%clk 0:00:16]} 30. Rd4 {[%clk 0:00:56]}  Ke7 {[%clk 0:00:15]} 31. c5 {[%clk 0:00:41]}  bxc5 {[%clk 0:00:14]} 32. bxc5 {[%clk 0:00:42]}  Rc8 {[%clk 0:00:14]} 33. Rc4 {[%clk 0:00:43]}  Kd7 {[%clk 0:00:14]} 34. Kd4 {[%clk 0:00:41]}  Rf8 {[%clk 0:00:07]} 35. c6+ {[%clk 0:00:34]}  Kd6 {[%clk 0:00:07]} 36. g3 {[%clk 0:00:27]}  Rc8 {[%clk 0:00:07]} 37. c7 {[%clk 0:00:15]}  Rxc7 {[%clk 0:00:06]} 38. Rxc7 {[%clk 0:00:16]}  Kxc7 {[%clk 0:00:07]} 39. Kc5 {[%clk 0:00:17]}  Kd7 {[%clk 0:00:06]} 40. g4 {[%clk 0:00:09]}  Kc7 {[%clk 0:00:06]} 41. h4 {[%clk 0:00:03]}  Kd7 {[%clk 0:00:07]} 42. h5 {[%clk 0:00:01]}  Kc7 {[%clk 0:00:07]} 43. g5 {[%clk 0:00:01]}  Kd7 {[%clk 0:00:05]} 44. Kd4 {[%clk 0:00:01]}  Kd6 {[%clk 0:00:05]} 45. Ke4 {[%clk 0:00:02]}  Kd7 {[%clk 0:00:04]} 46. Ke5 {[%clk 0:00:02]}  Ke7 {[%clk 0:00:05]} 47. f5 {[%clk 0:00:02]}  exf5 {[%clk 0:00:05]} 48. Kxf5 {[%clk 0:00:03]}  hxg5 {[%clk 0:00:05]} 49. Kxg5 {[%clk 0:00:04]}  Kf7 {[%clk 0:00:05]} 50. Kf5 {[%clk 0:00:05]}  Ke7 {[%clk 0:00:04]} 51. Kg6 {[%clk 0:00:05]}  Kf8 {[%clk 0:00:05]} 52. a5 {[%clk 0:00:05]}  Kg8 {[%clk 0:00:05]} 53. a6 {[%clk 0:00:05]}  Kf8 {[%clk 0:00:04]} 54. Kg5 {[%clk 0:00:04]}  Kf7 {[%clk 0:00:05]} 55. Kf5 {[%clk 0:00:04]}  Kf8 {[%clk 0:00:05]} 56. Ke6 {[%clk 0:00:05]}  Kg8 {[%clk 0:00:05]} 57. Kd7 {[%clk 0:00:05]}  Kh7 {[%clk 0:00:05]} 58. Kc7 {[%clk 0:00:06]}  Kh6 {[%clk 0:00:06]} 59. Kb7 {[%clk 0:00:07]}  Kxh5 {[%clk 0:00:06]} 60. Kxa7 {[%clk 0:00:07]}  g5 {[%clk 0:00:07]} 61. Kb8 {[%clk 0:00:07]}  g4 {[%clk 0:00:08]} 62. a7 {[%clk 0:00:08]}  g3 {[%clk 0:00:08]} 63. a8=Q {[%clk 0:00:09]}  Kg4 {[%clk 0:00:08]} 64. Qg2 {[%clk 0:00:10]} 1-0


[Site "https://www.chess.com"]

[Event "Titled Tuesday Blitz February 15 Late 2022"]
[White "Pinheiro, Iung Alicio de O."]
[Black "Ladan, Nicholas"]
[WhiteFideId "2104350"]
[BlackFideId "30918855"]
[WhiteElo "2615"]
[BlackElo "2366"]
[Result "1-0"]
[Round "10"]
[TimeControl "180+1"]
[Date "2022.02.16"]
[WhiteClock "0:00:16"]
[BlackClock "0:00:03"]

1. e4 {[%clk 0:03:00]}  e5 {[%clk 0:03:00]} 2. Bc4 {[%clk 0:02:57]}  Nc6 {[%clk 0:02:59]} 3. d3 {[%clk 0:02:53]}  Nf6 {[%clk 0:02:59]} 4. Nc3 {[%clk 0:02:53]}  Na5 {[%clk 0:02:59]} 5. Qf3 {[%clk 0:02:52]}  c6 {[%clk 0:02:58]} 6. Nge2 {[%clk 0:02:45]}  Be7 {[%clk 0:02:55]} 7. Ng3 {[%clk 0:02:39]}  d6 {[%clk 0:02:46]} 8. a4 {[%clk 0:02:31]}  Nxc4 {[%clk 0:02:45]} 9. dxc4 {[%clk 0:02:32]}  O-O {[%clk 0:02:38]} 10. O-O {[%clk 0:02:31]}  a5 {[%clk 0:02:30]} 11. h3 {[%clk 0:02:27]}  Qc7 {[%clk 0:02:22]} 12. Bg5 {[%clk 0:02:18]}  h6 {[%clk 0:02:19]} 13. Bxf6 {[%clk 0:02:11]}  Bxf6 {[%clk 0:02:20]} 14. Rad1 {[%clk 0:02:01]}  Qe7 {[%clk 0:02:17]} 15. Rd3 {[%clk 0:01:55]}  Be6 {[%clk 0:02:01]} 16. b3 {[%clk 0:01:55]}  g6 {[%clk 0:02:00]} 17. Rfd1 {[%clk 0:01:53]}  Rfd8 {[%clk 0:02:00]} 18. Qe3 {[%clk 0:01:36]}  Bg7 {[%clk 0:01:58]} 19. Qd2 {[%clk 0:01:37]}  Bf8 {[%clk 0:01:58]} 20. Nce2 {[%clk 0:01:24]}  b6 {[%clk 0:01:49]} 21. f4 {[%clk 0:01:21]}  exf4 {[%clk 0:01:41]} 22. Nxf4 {[%clk 0:01:21]}  Bd7 {[%clk 0:01:27]} 23. Rf3 {[%clk 0:01:10]}  Re8 {[%clk 0:01:17]} 24. Rdf1 {[%clk 0:01:07]}  Bg7 {[%clk 0:01:07]} 25. Qf2 {[%clk 0:01:03]}  Rf8 {[%clk 0:01:01]} 26. Qxb6 {[%clk 0:00:59]}  c5 {[%clk 0:00:38]} 27. Nd5 {[%clk 0:00:44]}  Qg5 {[%clk 0:00:20]} 28. Qxd6 {[%clk 0:00:38]}  Bd4+ {[%clk 0:00:16]} 29. Kh1 {[%clk 0:00:36]}  Be6 {[%clk 0:00:13]} 30. Qf4 {[%clk 0:00:32]}  Qxf4 {[%clk 0:00:10]} 31. Nxf4 {[%clk 0:00:29]}  Bd7 {[%clk 0:00:10]} 32. Nd5 {[%clk 0:00:28]}  Kg7 {[%clk 0:00:08]} 33. Ne2 {[%clk 0:00:20]}  Be5 {[%clk 0:00:07]} 34. Nb6 {[%clk 0:00:17]}  Bc6 {[%clk 0:00:06]} 35. Nxa8 {[%clk 0:00:17]}  Bxa8 {[%clk 0:00:04]} 36. Nc3 {[%clk 0:00:17]}  f5 {[%clk 0:00:03]} 37. Nd5 {[%clk 0:00:16]} 1-0


[Site "https://www.chess.com"]

[Event "Titled Tuesday Blitz February 15 Late 2022"]
[White "Qashashvili, Alexandre"]
[Black "Van den Dikkenberg, Erik"]
[WhiteFideId "13600842"]
[BlackFideId "1005880"]
[WhiteElo "2316"]
[BlackElo "2118"]
[Result "1-0"]
[Round "10"]
[TimeControl "180+1"]
[Date "2022.02.16"]
[WhiteClock "0:00:14"]
[BlackClock "0:00:02"]

1. e4 {[%clk 0:03:00]}  c5 {[%clk 0:02:57]} 2. Nc3 {[%clk 0:03:00]}  d6 {[%clk 0:02:56]} 3. Nf3 {[%clk 0:03:01]}  Nf6 {[%clk 0:02:55]} 4. d3 {[%clk 0:03:01]}  g6 {[%clk 0:02:55]} 5. Be3 {[%clk 0:03:02]}  Bg7 {[%clk 0:02:56]} 6. Qd2 {[%clk 0:03:02]}  Nc6 {[%clk 0:02:55]} 7. Bh6 {[%clk 0:03:03]}  O-O {[%clk 0:02:55]} 8. h4 {[%clk 0:03:03]}  Nd4 {[%clk 0:02:54]} 9. O-O-O {[%clk 0:02:57]}  Bg4 {[%clk 0:02:53]} 10. Be2 {[%clk 0:02:53]}  Nxe2+ {[%clk 0:02:40]} 11. Nxe2 {[%clk 0:02:51]}  b5 {[%clk 0:02:37]} 12. h5 {[%clk 0:02:49]}  Bxh5 {[%clk 0:02:34]} 13. Ng3 {[%clk 0:02:45]}  e5 {[%clk 0:01:46]} 14. Nxh5 {[%clk 0:02:33]}  Nxh5 {[%clk 0:01:45]} 15. Bxg7 {[%clk 0:02:30]}  Kxg7 {[%clk 0:01:43]} 16. g3 {[%clk 0:01:56]}  Qf6 {[%clk 0:01:37]} 17. Nh4 {[%clk 0:01:54]}  a5 {[%clk 0:01:32]} 18. Rh2 {[%clk 0:01:52]}  a4 {[%clk 0:01:27]} 19. Rdh1 {[%clk 0:01:52]}  b4 {[%clk 0:01:21]} 20. Nf5+ {[%clk 0:01:38]}  Kh8 {[%clk 0:00:52]} 21. g4 {[%clk 0:01:34]}  Rg8 {[%clk 0:00:38]} 22. Nh6 {[%clk 0:01:25]}  Nf4 {[%clk 0:00:21]} 23. Nxg8 {[%clk 0:01:19]}  Kxg8 {[%clk 0:00:20]} 24. Rxh7 {[%clk 0:01:17]}  b3 {[%clk 0:00:17]} 25. cxb3 {[%clk 0:01:13]}  axb3 {[%clk 0:00:17]} 26. a3 {[%clk 0:01:13]}  Ra7 {[%clk 0:00:15]} 27. f3 {[%clk 0:01:06]}  Kf8 {[%clk 0:00:15]} 28. Kb1 {[%clk 0:00:34]}  Ke7 {[%clk 0:00:15]} 29. Qc3 {[%clk 0:00:32]}  Ra4 {[%clk 0:00:14]} 30. Qxb3 {[%clk 0:00:28]}  Ra7 {[%clk 0:00:10]} 31. Rh8 {[%clk 0:00:25]}  Ne6 {[%clk 0:00:10]} 32. Qb8 {[%clk 0:00:24]}  Qxf3 {[%clk 0:00:08]} 33. Qe8+ {[%clk 0:00:23]}  Kf6 {[%clk 0:00:08]} 34. Rf8 {[%clk 0:00:16]}  Qxh1+ {[%clk 0:00:08]} 35. Ka2 {[%clk 0:00:17]}  Qg2 {[%clk 0:00:06]} 36. Qb8 {[%clk 0:00:15]}  Re7 {[%clk 0:00:06]} 37. Rc8 {[%clk 0:00:14]}  Qf3 {[%clk 0:00:05]} 38. Qxd6 {[%clk 0:00:14]}  Qe3 {[%clk 0:00:05]} 39. Rc6 {[%clk 0:00:12]}  Qd4 {[%clk 0:00:05]} 40. g5+ {[%clk 0:00:13]}  Kxg5 {[%clk 0:00:04]} 41. Qxe7+ {[%clk 0:00:13]}  Kf4 {[%clk 0:00:02]} 42. Rxe6 {[%clk 0:00:14]}  Ke3 {[%clk 0:00:02]} 43. Rd6 {[%clk 0:00:14]} 1-0


[Site "https://www.chess.com"]

[Event "Titled Tuesday Blitz February 15 Late 2022"]
[White "Remizov, Yaroslav"]
[Black "Al-Tarboush, Ward"]
[WhiteFideId "34134015"]
[BlackFideId "7601450"]
[WhiteElo "2360"]
[BlackElo "2276"]
[Result "1-0"]
[Round "10"]
[TimeControl "180+1"]
[Date "2022.02.15"]
[WhiteClock "0:00:08"]
[BlackClock "0:00:01"]

1. e3 {[%clk 0:01:25]}  e5 {[%clk 0:02:58]} 2. a3 {[%clk 0:01:25]}  d5 {[%clk 0:02:58]} 3. c4 {[%clk 0:01:25]}  d4 {[%clk 0:02:57]} 4. exd4 {[%clk 0:01:24]}  exd4 {[%clk 0:02:57]} 5. d3 {[%clk 0:01:24]}  Nf6 {[%clk 0:02:56]} 6. Nf3 {[%clk 0:01:24]}  Be7 {[%clk 0:02:56]} 7. Be2 {[%clk 0:01:25]}  O-O {[%clk 0:02:56]} 8. O-O {[%clk 0:01:25]}  a5 {[%clk 0:02:55]} 9. Re1 {[%clk 0:01:21]}  Nc6 {[%clk 0:02:53]} 10. Bf4 {[%clk 0:01:20]}  Bf5 {[%clk 0:02:51]} 11. h3 {[%clk 0:01:16]}  a4 {[%clk 0:02:48]} 12. Ne5 {[%clk 0:01:13]}  Nxe5 {[%clk 0:02:47]} 13. Bxe5 {[%clk 0:01:14]}  c5 {[%clk 0:02:46]} 14. Nd2 {[%clk 0:01:08]}  Qd7 {[%clk 0:02:45]} 15. Bxf6 {[%clk 0:00:59]}  Bxf6 {[%clk 0:02:45]} 16. Bg4 {[%clk 0:01:00]}  Ra6 {[%clk 0:02:38]} 17. Ne4 {[%clk 0:00:59]}  Be7 {[%clk 0:02:31]} 18. Bxf5 {[%clk 0:00:59]}  Qxf5 {[%clk 0:02:31]} 19. Ng3 {[%clk 0:00:57]}  Qd7 {[%clk 0:02:28]} 20. Qf3 {[%clk 0:00:57]}  Bh4 {[%clk 0:02:23]} 21. Re5 {[%clk 0:00:48]}  Rf6 {[%clk 0:02:19]} 22. Qd5 {[%clk 0:00:45]}  Qxd5 {[%clk 0:02:08]} 23. Rxd5 {[%clk 0:00:46]}  Bxg3 {[%clk 0:02:08]} 24. fxg3 {[%clk 0:00:46]}  Re8 {[%clk 0:02:06]} 25. Rxc5 {[%clk 0:00:39]}  h6 {[%clk 0:01:58]} 26. Rd5 {[%clk 0:00:27]}  Re2 {[%clk 0:01:53]} 27. Kh2 {[%clk 0:00:26]}  Rff2 {[%clk 0:01:52]} 28. Rg1 {[%clk 0:00:25]}  Rxb2 {[%clk 0:01:51]} 29. Rxd4 {[%clk 0:00:24]}  Rb3 {[%clk 0:01:51]} 30. Rd8+ {[%clk 0:00:19]}  Kh7 {[%clk 0:01:50]} 31. Rd7 {[%clk 0:00:18]}  f6 {[%clk 0:01:34]} 32. d4 {[%clk 0:00:17]}  Rfb2 {[%clk 0:01:27]} 33. Re1 {[%clk 0:00:16]}  Kg6 {[%clk 0:01:16]} 34. Ree7 {[%clk 0:00:14]}  Rxa3 {[%clk 0:01:10]} 35. g4 {[%clk 0:00:12]}  Kg5 {[%clk 0:01:09]} 36. Rxg7+ {[%clk 0:00:11]}  Kf4 {[%clk 0:01:05]} 37. Rxb7 {[%clk 0:00:10]}  Rc2 {[%clk 0:00:53]} 38. Rgf7 {[%clk 0:00:10]}  Raa2 {[%clk 0:00:44]} 39. Rxf6+ {[%clk 0:00:10]}  Ke4 {[%clk 0:00:43]} 40. Kg3 {[%clk 0:00:09]}  Kxd4 {[%clk 0:00:35]} 41. Rxh6 {[%clk 0:00:07]}  Rxg2+ {[%clk 0:00:34]} 42. Kh4 {[%clk 0:00:07]}  Kxc4 {[%clk 0:00:34]} 43. Rc6+ {[%clk 0:00:06]}  Kd5 {[%clk 0:00:33]} 44. Ra6 {[%clk 0:00:06]}  Ra3 {[%clk 0:00:30]} 45. Rb4 {[%clk 0:00:05]}  Rga2 {[%clk 0:00:26]} 46. Ra5+ {[%clk 0:00:03]}  Kc6 {[%clk 0:00:25]} 47. Kg5 {[%clk 0:00:03]}  Rxh3 {[%clk 0:00:09]} 48. Rc4+ {[%clk 0:00:03]}  Kd6 {[%clk 0:00:08]} 49. Rcxa4 {[%clk 0:00:03]}  Rg2 {[%clk 0:00:06]} 50. Ra6+ {[%clk 0:00:03]}  Kc7 {[%clk 0:00:06]} 51. Rg6 {[%clk 0:00:03]}  Kb7 {[%clk 0:00:03]} 52. Rf4 {[%clk 0:00:03]}  Rc2 {[%clk 0:00:02]} 53. Rf7+ {[%clk 0:00:03]}  Rc7 {[%clk 0:00:01]} 54. Rxc7+ {[%clk 0:00:03]}  Kxc7 {[%clk 0:00:02]} 55. Re6 {[%clk 0:00:04]}  Kd7 {[%clk 0:00:02]} 56. Re1 {[%clk 0:00:04]}  Rh8 {[%clk 0:00:02]} 57. Kf5 {[%clk 0:00:04]}  Rf8+ {[%clk 0:00:03]} 58. Kg6 {[%clk 0:00:04]}  Rg8+ {[%clk 0:00:03]} 59. Kh5 {[%clk 0:00:05]}  Rh8+ {[%clk 0:00:03]} 60. Kg5 {[%clk 0:00:05]}  Rg8+ {[%clk 0:00:04]} 61. Kf4 {[%clk 0:00:06]}  Rf8+ {[%clk 0:00:04]} 62. Kg3 {[%clk 0:00:06]}  Rg8 {[%clk 0:00:04]} 63. Re2 {[%clk 0:00:07]}  Rg7 {[%clk 0:00:04]} 64. Re5 {[%clk 0:00:07]}  Kd6 {[%clk 0:00:03]} 65. Kf4 {[%clk 0:00:07]}  Rg8 {[%clk 0:00:03]} 66. g5 {[%clk 0:00:07]}  Ra8 {[%clk 0:00:01]} 67. Re1 {[%clk 0:00:06]}  Ra4+ {[%clk 0:00:01]} 68. Kf5 {[%clk 0:00:07]}  Ra2 {[%clk 0:00:01]} 69. Kf6 {[%clk 0:00:07]}  Rf2+ {[%clk 0:00:01]} 70. Kg7 {[%clk 0:00:07]}  Rg2 {[%clk 0:00:01]} 71. g6 {[%clk 0:00:08]}  Rf2 {[%clk 0:00:01]} 72. Kh7 {[%clk 0:00:08]}  Rh2+ {[%clk 0:00:01]} 73. Kg8 {[%clk 0:00:08]}  Kd7 {[%clk 0:00:02]} 74. g7 {[%clk 0:00:08]}  Rg2 {[%clk 0:00:02]} 75. Re5 {[%clk 0:00:08]}  Rg3 {[%clk 0:00:01]} 76. Kf7 {[%clk 0:00:08]}  Kd6 {[%clk 0:00:01]} 77. Rf5 {[%clk 0:00:08]} 1-0


[Site "https://www.chess.com"]